Cogmind - Beta 15 @@@ ROGUE MODE // 2025.09.18 @ 14:31:28 Player: shapeshifter Result: Self-destructed Performance ------------- Evolutions (2) 1000 Regions Visited (5) 1000 Robots Destroyed (45) 225 Value Destroyed (1419) 1419 Prototype IDs (27) 540 Alien Tech Used (0) 0 Bonus (300) 300 TOTAL SCORE: 4484 Bonus ------- Aligned with FarCom 300 Cogmind --------- Core Integrity 218/550 Matter 10/300 Energy 290/290 System Corruption 0% Temperature Warm (116) Movement Treading (560) Ox5 Location -8/Materials Parts ------- > --- POWER (1) -------- Improved Deuterium Engine > --- PROPULSION (3) --- Improved Treads > --- UTILITY (4) ------ Huge Storage Unit Reactive Plating System Shield > --- WEAPON (3) ------- Advanced Assault Cannon Advanced Assault Cannon Rocket Launcher > --- INVENTORY (25) --- Cooled Ion Engine Light Treads Light Treads High-capacity Storage Unit Large Matter Pod (0) Improved Sensor Array Propulsion Shielding Improved Utility Shielding Improved Weapon Shielding Splice Drone Bay (6/6) Heavy EM Shotgun Heavy EM Shotgun Heavy EM Shotgun Heavy EM Shotgun AWS/Thermal YOLO Cannon Heavy Assault Rifle AWS/Autocannon Rocket Launcher Rocket Launcher Peak State ------------ > --- POWER ------------ Improved Deuterium Engine > --- PROPULSION ------- Light Treads Improved Treads Improved Treads > --- UTILITY ---------- Cooling System Huge Storage Unit Reactive Plating System Shield > --- WEAPON ----------- Advanced Assault Cannon Advanced Assault Cannon Advanced EMP Blaster > --- INVENTORY -------- Cooled Ion Engine Light Treads Light Treads High-capacity Storage Unit Large Matter Pod Improved Sensor Array Propulsion Shielding Improved Utility Shielding Improved Weapon Shielding Splice Drone Bay Heavy EM Shotgun Heavy EM Shotgun Heavy EM Shotgun Heavy EM Shotgun AWS/Thermal YOLO Cannon Heavy Assault Rifle AWS/Autocannon Rocket Launcher Rocket Launcher Rocket Launcher [Rating: 41] Favorites ----------- Power Ion Engine Engine Ion Engine Propulsion Improved Treads Treads Improved Treads Utility Seismic Detector Device Seismic Detector Storage High-capacity Storage Unit Hackware System Shield Protection Reactive Plating Weapon Advanced Assault Cannon Energy Gun EM Pulse Gun Ballistic Gun Light Assault Rifle Ballistic Cannon Advanced Assault Cannon Launcher Rocket Launcher Build | -11 -10 -10 -10 -9 -8 ------- Run | Yrd Mat Min Exi Min Mat Slots Evolved 4 | . . . . . 4 Power . | . . . . . . Propulsion 1 | . . . . . 1 Utility 2 | . . . . . 2 Weapon 1 | . . . . . 1 Parts Attached 39 | 7 5 1 1 3 22 Power 5 | 1 1 . . . 3 Engine 5 | 1 1 . . . 3 Core . | . . . . . . Reactor . | . . . . . . Propulsion 8 | 2 2 . . . 4 Treads 8 | 2 2 . . . 4 Leg . | . . . . . . Wheel . | . . . . . . Hover . | . . . . . . Flight . | . . . . . . Utility 13 | 2 1 . 1 1 8 Device 4 | 1 . . . 1 2 Storage 4 | 1 1 . 1 . 1 Processor . | . . . . . . Hackware 1 | . . . . . 1 Protection 4 | . . . . . 4 Artifact . | . . . . . . Weapon 13 | 2 1 1 . 2 7 Energy Gun 2 | 1 . . . . 1 Energy Cannon . | . . . . . . Ballistic Gun 3 | 1 1 1 . . . Ballistic Cannon 4 | . . . . . 4 Launcher 4 | . . . . 2 2 Special Weapon . | . . . . . . Impact Weapon . | . . . . . . Slashing Weapon . | . . . . . . Piercing Weapon . | . . . . . . Special Melee Weapon . | . . . . . . Unidentified Prototypes 4 | . . . . 1 3 Parts Lost 7 | . . . . . 7 Power . | . . . . . . Propulsion 3 | . . . . . 3 Utility 2 | . . . . . 2 Weapon 2 | . . . . . 2 Highest Loss Streak 3 | . . . . . 3 To Critical Strikes . | . . . . . . Average Backups 13 | 3 6 9 11 14 17 Power . | . . . . . . Propulsion 1 | 1 2 2 2 2 . Utility 4 | . 2 3 4 6 5 Weapon 6 | . 2 4 4 5 9 Tool/Special . | . . . . . . Unused Backups 25 | . 3 . . 2 20 Power 2 | . . . . . 2 Propulsion 4 | . 2 . . . 2 Utility 9 | . . . . 2 7 Weapon 10 | . 1 . . . 9 Tool/Special . | . . . . . . Average Slot Usage (%) 91 | . 100 100 91 95 87 Engine 11 | . 14 14 14 14 9 Treads 27 | . 28 28 28 28 26 Device 12 | . 14 14 14 14 11 Storage 11 | . 14 14 14 14 9 Hackware 1 | . . . . . 4 Protection 4 | . . . . . 8 Ballistic Gun 7 | . 19 28 19 . . Ballistic Cannon 7 | . . . . . 16 Launcher 4 | . . . . 23 1 Peak Build Rating 41 | 7 10 10 15 25 41 Average Rating 22 | 5 8 10 10 18 33 On Entrance 10 | . 7 10 10 15 20 Naked Turns . | . . . . . . Heaviest Build 116 | 13 19 19 48 54 116 Greatest Support 69 | 40 46 46 46 46 69 Greatest Overweight (x) 2 | . . . 1 1 2 Average Overweight (x) . | . . . . . . Largest Inventory Capacity 25 | 8 10 10 20 20 25 Average Capacity 18 | 7 9 10 18 20 23 Most Carried 25 | 6 10 9 18 20 25 Average Carried 16 | 3 6 8 11 18 21 Final Capacity 25 | 8 10 10 20 20 25 Final Carried 24 | 5 9 9 18 20 24 Class Distribution -------------------- 99% | Mutant Dominant Class ---------------- Mutant | -10/Materials Mutant | -10/Mines Mutant | -10/Exiles Mutant | -9/Mines Mutant | -8/Materials Resources | -11 -10 -10 -10 -9 -8 ----------- Run | Yrd Mat Min Exi Min Mat Matter Collected 1605 | 282 68 . 45 85 1125 Remotely 390 | . . . . . 390 Salvage Created 1452 | 110 183 . . . 1159 Parts 81 | 11 8 . . . 62 Haulers Intercepted 1 | . . . . . 1 Recyclers Shooed 2 | . . . . 1 1 Parts Field Recycled . | . . . . . . Retrieved Matter . | . . . . . . Parts Self-Destructed . | . . . . . . Prevented . | . . . . . . Kills | -11 -10 -10 -10 -9 -8 ------- Run | Yrd Mat Min Exi Min Mat Combat Hostiles Destroyed 28 | . 4 . . . 24 Guns 4 | . 4 . . . . Cannons 20 | . . . . . 20 AOE 4 | . . . . . 4 Classes Destroyed 12 | 2 4 . . . 6 Builder 2 | . . . . . 2 Tunneler 2 | 2 . . . . . Hauler 1 | . . . . . 1 Recycler 6 | 1 . . . . 5 Operator 1 | . 1 . . . . Watcher 5 | . 1 . . . 4 Swarmer 3 | . 2 . . . 1 Grunt 17 | . 2 . . . 15 Brawler 2 | . . . . . 2 Sentry 3 | . . . . . 3 Specialist 1 | . . . . . 1 Hunter 2 | . . . . . 2 Best Kill Streak 6 | 2 3 . . . 6 Combat Bots Only 4 | . 2 . . . 4 Max Kills in Single Turn 2 | 1 1 . . . 2 Gunslinging . | . . . . . . Exploded 2 | . . . . . 2 Melee . | . . . . . . Uniques/NPCs Destroyed . | . . . . . . Combat | -11 -10 -10 -10 -9 -8 -------- Run | Yrd Mat Min Exi Min Mat Hostile Shots Fired 222 | . 20 . . . 202 Missed 71 | . 9 . . . 62 Hits 151 | . 11 . . . 140 Projectile 151 | . 11 . . . 140 Critical Strikes 5 | . . . . . 5 Damage Taken 2280 | . 92 . . . 2188 Core 350 | . 18 . . . 332 Absorbed by Shields . | . . . . . . Ignored by Resistances 116 | . . . . . 116 Core Remaining (%) 96 | 100 . . . 92 . Volleys Fired 113 | 4 14 . . 1 94 Largest 3 | 2 2 . . 2 3 Hottest 113 | 60 60 . . 66 113 Shots Fired 226 | 8 28 . . 2 188 Gun 36 | 8 28 . . . . Cannon 180 | . . . . . 180 Launcher 10 | . . . . 2 8 Special . | . . . . . . Kinetic 199 | 4 15 . . . 180 Thermal . | . . . . . . Explosive 10 | . . . . 2 8 Electromagnetic 17 | 4 13 . . . . Robot Hit Streak 6 | 1 4 . . 3 6 Robot Miss Streak 4 | 1 2 . . . 4 Penetration Max . | . . . . . . Secondary Targets 1 | . 1 . . . . Max Gunslinging Chain 1 | . 1 . . . . Shots Hit Robots 128 | 4 17 . . 2 105 Core Hits 71 | 4 8 . . 1 58 Critical Kills . | . . . . . . Critical Parts Destroyed . | . . . . . . Critical Strikes 7 | . . . . . 7 Blast 7 | . . . . . 7 Melee Attacks . | . . . . . . Impact . | . . . . . . Slashing . | . . . . . . Piercing . | . . . . . . Sneak Attacks . | . . . . . . Combat Hostiles . | . . . . . . Follow-up Attacks . | . . . . . . Damage Inflicted 3810 | 53 219 . . 62 3476 Guns 272 | 53 219 . . . . Cannons 2861 | . . . . . 2861 Explosions 677 | . . . . 62 615 Melee . | . . . . . . Ramming . | . . . . . . Kinetic 2981 | 27 93 . . . 2861 Thermal . | . . . . . . Explosive 677 | . . . . 62 615 Electromagnetic 152 | 26 126 . . . . Impact . | . . . . . . Slashing . | . . . . . . Piercing . | . . . . . . Highest Corruption . | . . . . . . Average Corruption . | . . . . . . Corruption Purged . | . . . . . . Corruption Blocked . | . . . . . . Overload Shots . | . . . . . . Overflow Damage 73 | . . . . . 73 Projectiles 42 | . . . . . 42 Explosions 31 | . . . . . 31 Melee . | . . . . . . Knockbacks 29 | . . . . . 29 Impact . | . . . . . . Kinetic 29 | . . . . . 29 Secondary . | . . . . . . Self-Inflicted Damage 131 | . . . . 1 130 Shots 4 | . . . . 1 3 Rammed . | . . . . . . Targets Rammed . | . . . . . . Kicked . | . . . . . . Crushed . | . . . . . . Highest Temperature 333 | . 12 . . 6 333 Average Temperature 101 | . 8 . . 4 116 Received Heat Transfer 894 | . 12 . . . 882 Siege Activations . | . . . . . . Martial Activations . | . . . . . . Shielding Activations . | . . . . . . Robots Disrupted . | . . . . . . Combat Hostiles . | . . . . . . Robots Corrupted . | . . . . . . Combat Hostiles . | . . . . . . Parts Fried 1 | 1 . . . . . Impact Corruptions . | . . . . . . Robots Melted . | . . . . . . Combat Hostiles . | . . . . . . Parts Melted . | . . . . . . Heat Transferred . | . . . . . . Parts Sabotaged . | . . . . . . Parts Stolen . | . . . . . . Parts Stripped . | . . . . . . Power Chain Reactions . | . . . . . . Alert | -11 -10 -10 -10 -9 -8 ------- Run | Yrd Mat Min Exi Min Mat Maximum Alert Level 1 | . . . . . 1 Low Security (%) 98 | 100 100 100 . 100 97 Level 1 1 | . . . . . 2 Level 2 . | . . . . . . Level 3 . | . . . . . . Level 4 . | . . . . . . Level 5 . | . . . . . . High Security . | . . . . . . Max Security . | . . . . . . Peak Influence 331 | 5 71 . . 14 331 Initial . | . . . . . . Average 73 | 1 21 . . . 129 Influence Increases 1088 | 15 134 . . 14 925 Destroy 0b10 Robot/C 560 | . 80 . . . 480 Destroy 0b10 Robot/NC 85 | 15 10 . . . 60 Destroy Leader 132 | . 12 . . . 120 Successful Hack 34 | . 16 . . . 18 Disable Machine 60 | . 15 . . . 45 Destroy Structure 127 | . 1 . . 14 112 Lose Combat Pursuer 90 | . . . . . 90 Influence Decreases 786 | 15 134 . . 14 623 Time Decay 716 | 15 134 . . 14 553 Lost Part 70 | . . . . . 70 Squads Dispatched 8 | . 2 . . . 6 Investigation 3 | . 1 . . . 2 Extermination . | . . . . . . Reinforcement 4 | . 1 . . . 3 Assault . | . . . . . . Garrison 1 | . . . . . 1 Intercept . | . . . . . . Searches Triggered . | . . . . . . Construction Impeded 1 | . . . . . 1 Haulers Reinforced . | . . . . . . Active Scanning Responses . | . . . . . . Cargo Convoy Interrupts . | . . . . . . Stealth | -11 -10 -10 -10 -9 -8 --------- Run | Yrd Mat Min Exi Min Mat Distress Signals 6 | . 2 . . . 4 Communications Jammed . | . . . . . . Distress Signals . | . . . . . . Times Spotted 63 | . 10 . . . 53 Peak Tracking Total 9 | . 5 . . . 9 Tactical Retreats 5 | . . . . . 5 Traps | -11 -10 -10 -10 -9 -8 ------- Run | Yrd Mat Min Exi Min Mat Traps Triggered 3 | . 1 . . . 2 Indirectly . | . . . . . . Trap Hack Attempts . | . . . . . . Triggered . | . . . . . . Disarmed . | . . . . . . Reprogrammed . | . . . . . . Reused . | . . . . . . Traps Extracted . | . . . . . . Installed . | . . . . . . Triggered . | . . . . . . Machines | -11 -10 -10 -10 -9 -8 ---------- Run | Yrd Mat Min Exi Min Mat Machines Disabled 4 | . 1 . . . 3 Max in Single Turn 1 | . 1 . . . 1 Machines Repaired . | . . . . . . Machines Dismantled . | . . . . . . Machines Sabotaged . | . . . . . . Overloaded Fab Kills . | . . . . . . Hacking | -11 -10 -10 -10 -9 -8 --------- Run | Yrd Mat Min Exi Min Mat Machines Accessed 11 | . 2 . 2 1 6 Terminals 8 | . 2 . . . 6 Fabricators . | . . . . . . Repair Stations . | . . . . . . Recycling Units . | . . . . . . Scanalyzers . | . . . . . . Garrison Access . | . . . . . . Total Hacks 33 | . 9 . 2 1 21 Successful 19 | . 5 . 2 1 11 Failed 14 | . 4 . . . 10 Catastrophic 1 | . . . . . 1 Database Lockouts . | . . . . . . Manual 29 | . 9 . 1 . 19 Terminals 30 | . 9 . . . 21 Fabricators . | . . . . . . Repair Stations . | . . . . . . Recycling Units . | . . . . . . Scanalyzers . | . . . . . . Garrison Access . | . . . . . . Terminal Hacks 7 | . 1 . 2 1 3 Record 1 | . . . 1 . . Open Door 1 | . . . . 1 . Zone Layout 4 | . 1 . . . 3 Proto ID Catalog 1 | . . . 1 . . Fabricator Hacks . | . . . . . . Repair Station Hacks . | . . . . . . Recycling Unit Hacks . | . . . . . . Scanalyzer . | . . . . . . Garrison Access Hacks . | . . . . . . Unauthorized Hacks 12 | . 4 . . . 8 Terminals 12 | . 4 . . . 8 Botnet 6 | . 2 . . . 4 Skim 6 | . 2 . . . 4 Fabricators . | . . . . . . Repair Stations . | . . . . . . Recycling Units . | . . . . . . Scanalyzers . | . . . . . . Garrison Access . | . . . . . . Data Cores Recovered 1 | . 1 . . . . Used . | . . . . . . Hacking Detections 7 | . 2 . . . 5 Full Trace Events 1 | . . . . . 1 Feedback Events . | . . . . . . Feedback Blocked . | . . . . . . Robot Schematics Acquired . | . . . . . . Robots Built . | . . . . . . Authchips . | . . . . . . Time . | . . . . . . Total Robot Build Rating . | . . . . . . Part Schematics Acquired . | . . . . . . Parts Built . | . . . . . . Authchips . | . . . . . . Time . | . . . . . . Total Part Build Rating . | . . . . . . Parts Repaired . | . . . . . . Time . | . . . . . . Parts Recycled . | . . . . . . Recycled Matter . | . . . . . . Retrieved Matter . | . . . . . . Retrieved Components . | . . . . . . Parts Scanalyzed . | . . . . . . Part Schematics Acquired . | . . . . . . Parts Damaged . | . . . . . . Bothacking | -11 -10 -10 -10 -9 -8 ------------ Run | Yrd Mat Min Exi Min Mat Used RIF Installer . | . . . . . . Robots Hacked . | . . . . . . Non-combat . | . . . . . . Combat . | . . . . . . Robot Hacks Applied . | . . . . . . Relay Couplers Released . | . . . . . . Fabnet Peak Effective % . | . . . . . . Robots Rewired . | . . . . . . Allies Hacked . | . . . . . . Hacks Repelled . | . . . . . . Allies | -11 -10 -10 -10 -9 -8 -------- Run | Yrd Mat Min Exi Min Mat Total Allies 1 | . . . . 1 . Largest Group 1 | . . . . 1 1 Highest-Rated Group 31 | . . . . 31 31 Highest-Rated Ally 31 | . . . . 31 31 Total Orders . | . . . . . . Ally Attacks 5 | . . . . . 5 Total Damage 65 | . . . . . 65 Kills . | . . . . . . Allies Corrupted . | . . . . . . Allies Melted . | . . . . . . Intel | -11 -10 -10 -10 -9 -8 ------- Run | Yrd Mat Min Exi Min Mat Active Infowar (turns) 2385 | 24 414 278 725 698 246 Seismic 2385 | 24 414 278 725 698 246 Robot Analysis Total . | . . . . . . Derelict Logs Recovered 2 | . . . . 2 . Drone Launches . | . . . . . . Drone Recoveries . | . . . . . . Exploration | -11 -10 -10 -10 -9 -8 ------------- Run | Yrd Mat Min Exi Min Mat Turns Passed 4044 | 120 414 278 725 699 1808 Spaces Moved 1777 | 64 220 163 369 305 656 Core 17 | 17 . . . . . Treads 1760 | 47 220 163 369 305 656 Legs . | . . . . . . Wheels . | . . . . . . Hover . | . . . . . . Flight . | . . . . . . Fastest Speed 50 | 50 160 160 160 160 160 Average Speed 195 | 130 160 160 194 224 210 Slowest Speed 320 | 160 160 160 240 240 320 Overloaded Moves . | . . . . . . Propulsion Burnouts . | . . . . . . Robots Hopped . | . . . . . . Potential Cave-ins . | . . . . . . Cave-ins Triggered . | . . . . . . Exploration Rate (%) 46 | 5 35 33 69 81 54 Regions Visited 5 Branch Regions 3 Pre-discovered Areas 2 | . . . 1 1 . Known Exits Taken . | . . . . . . Unknown Exits Taken 5 | 1 1 1 1 1 . Scrap Searched 1 | . . . . 1 . Spaces Dug 2 | . . . . . 2 Terrain Destroyed 149 | . . . . 25 124 Melee . | . . . . . . Projectile 59 | . . . . . 59 AOE 90 | . . . . 25 65 Terrain Rammed . | . . . . . . Walls Destroyed . | . . . . . . Machines Disabled . | . . . . . . Actions | -11 -10 -10 -10 -9 -8 --------- Run | Yrd Mat Min Exi Min Mat Total 2131 | 92 257 180 378 317 907 Wait 109 | 7 . 15 . . 87 Move 1772 | 63 219 162 368 304 656 Hop . | . . . . . . Pick Up 60 | 11 11 1 6 6 25 Fast Attach 6 | 1 . . . . 5 Attach 25 | 6 1 . . 2 16 Detach 1 | . . . . . 1 Swap 13 | . 4 1 1 2 5 Drop 32 | . 8 1 3 2 18 Fire 113 | 4 14 . . 1 94 Melee . | . . . . . . Ram . | . . . . . . Kick . | . . . . . . Crush . | . . . . . . Escape Stasis . | . . . . . . Rewire . | . . . . . . Trap . | . . . . . . Miscellaneous . | . . . . . . Route ------- -11/Scrapyard -10/Materials -10/Mines -10/Exiles -9/Mines -8/Materials (discovered 1 exit: [*Fac]) History --------- Turn | Location | Event 5 | -11/Scrapyard | Discovered new exit (range 15) 121 | -11/Scrapyard | Entered Materials 333 | -10/Materials | Build established: Mutant 398 | -10/Materials | Discovered new exit (range 15) 535 | -10/Materials | Entered Mines 610 | -10/Mines | Received a Rocket Launcher from a helpful Derelict 759 | -10/Mines | Deemed a non-threat by the Exiles lab entrance 784 | -10/Mines | Assembled infested the area 806 | -10/Mines | Discovered new exit (range 5) 813 | -10/Mines | Entered Exiles 852 | -10/Exiles | Met 8R-AWN 879 | -10/Exiles | Met EX-HEX 993 | -10/Exiles | Met EX-DEC 1034 | -10/Exiles | Learned location of Zion (-7) 1297 | -10/Exiles | Met EX-BIN 1323 | -10/Exiles | Aligned with FarCom system 1326 | -10/Exiles | Given EX-Vault access code 1363 | -10/Exiles | Opened EX-Vault 1376 | -10/Exiles | Found AWS/Thermal 1382 | -10/Exiles | Found YOLO Cannon 1388 | -10/Exiles | Found AWS/Autocannon 1421 | -10/Exiles | Warned to stay clear of 0b10 Research branches 1523 | -10/Exiles | Discovered new exit (range 10) 1538 | -10/Exiles | Stole three prototypes: AWS/Thermal, YOLO Cannon, AWS/Autocannon 1538 | -10/Exiles | Entered Mines 1562 | -9/Mines | Learned 4 Materials zone layouts 1634 | -9/Mines | Found the Drone Emporium 1648 | -9/Mines | Found Prototype Device 1649 | -9/Mines | Identified Splice Drone Bay 1940 | -9/Mines | Found a Scrap Suit stashed away for nefarious purposes 1944 | -9/Mines | Found Scrap Suit 2003 | -9/Mines | Found DCF Scrap (12 items) 2108 | -9/Mines | YI-UF0 nonchalantly dropped a Grenade Launcher on the ground 2213 | -9/Mines | Discovered new exit (range 10) 2216 | -9/Mines | Received a Mining Laser from a helpful Derelict 2237 | -9/Mines | Entered Materials 2237 | -8/Materials | Accompanied by 1 ally 2237 | -8/Materials | Evolved 4 slots: Propulsion x1, Utility x2, Weapon x1 2936 | -8/Materials | Discovered new exit (range 3) 3194 | -8/Materials | Lost 3 parts (1n2w) 4038 | -8/Materials | Core integrity fell below 50% 4041 | -8/Materials | Garrison activated, responded to threat 4045 | -8/Materials | Self-destructed Last Messages --------------- dispatching reinforcements to area. 04030_ The unstable cave ceiling collapses. 04033_ Penetrated by Slug. 04034_ K-01 Serf collects debris. 04035_ The unstable cave ceiling collapses. 04036_ X-62 Marksman knocked back. 04036_ X-62 Marksman destroyed. 04037_ Penetrated by Slug. 04038_ K-01 Serf collects debris. 04039_ Cooling System destroyed. 04040_ Penetrated by Slug. 04041_ Y-45 Defender calls for garrison reinforcements. 04041_ ALERT: Activating Garrison Access M001. 04041_ Destroyed Wheel. 04041_ Destroyed Recalibrator. 04042_ S-10 Pest emerges from the garrison. 04043_ Lgt. Treads destroyed. 04043_ Critical hit (Burn: +37). 04043_ Imp. Treads destroyed. Map ----- +----------------------------------------------------+ | ?????????????????????????????????????????????????? | | ?????????????????????????????????????????????????? | | ?????????????????????????????????????????????????? | | ?????????????????????????????????????????????????? | | ?????????????????????????????????????????????????? | | ?????????????????????????????????????????????????? | | ?????????????????????????????????????????????????? | | ?????????????????????????????????????????????????? | | ?????????????????????????????????????????????????? | | ?????????????????????????????????????????????????? | | ??????????????? ??????????? ??????????????????? | | ??????????????? #?????????# ##???????????????? | | ??????????????? #???? ???# ??????????????? | | ??????????????? #????"??? ??????????????? | | ??????????????? ## """Y?? x% *???????????????? | | ##########+??? # """ ?? % ????????????????? | | ! # ## ###??????????????? | | + * # #??????????????? | | """ ? # s # #??????????????? | | """ ########?? # " "s# #??????????????? | | """ ########??# ## g"G" # #??????????????? | | # #### ## " g #??????????????? | | # = + ## s ##?????????????? | | # # ## = ;#?????????????? | | + """ # ## H =% #??????????????? | | # """ + m !Y@%/% #??????????????? | | # """ ###### [#######??????????????? | | ## ########????#### #???????????????????? | | ?# #??????????????# # ##???????????????????? | | ## #??????????????## #? ????????????????????? | | ## #??????# ????###?? "???????????????????? | | ## #??????# """????????? """??????????????????? | | ## ######## """?????????k """"?????????????????? | | ## # # """????????? """"?????????????????? | | ## # !!! # """?????????? "???????????????????? | | ## # !!! # """??????????! ????????????????????? | | ## % # !! # """?????????? ???????????????????? | | ## # # """?????????? ???????????????????? | | ## %# # ??????????###???????????????????? | | ## #####+######+###????????????????????????????? | | % ????????????????????????? | | % %[=% ????????????????????????? | | % ????????????????????????? | | ###+#############+######?????????????????????????? | | #???# # ## | | "T" """ #???# # ## ### | | """ #???# """"""" # ## """"" # | | """ #???# """"""" # ## """"" # | | #???# """"""" # ## """"" + | | #???# """"""" # ## # | +----------------------------------------------------+ Best States ------------- Heat Dissipation 53 Energy Generation 16 Energy Capacity 290 Matter Stores 300 Matter Capacity 300 Sight Range 16 Terrain Scan Density 10 Armor Coverage 300 Resistance: KI 20 Evasion (%) 50 Recoil Reduction 3 Defensive Hacking 10 Item Schematics ----------------- None Robot Schematics ------------------ None Fabricated ------------ Nothing Repaired ---------- Nothing Alien Tech Used ----------------- None Achievements -------------- None Challenges ------------ None Game ------ Seed BombardmentBiocellMatrix Manual? 0 Play Time 00:20:09 Cumulative 299.2 hours Start 2025.09.18 @ 00:22:22 End 2025.09.18 @ 14:31:28 Sessions 3 Manual Loads 0 Difficulty Rogue Special Mode None Game No. 422 Rogue 422 Adventurer 0 Explorer 0 Win Type - Total 9 Types 5/0/1/2/1/0/0/0/0/0 Lore% 86 Gallery% 81 Achievement% 64 Wizard Run 0 Options --------- Layout 1 ASCII 0 Keyboard 0 Movement Mouse Keybinds 0 Fullscreen 1 Font 24/Smallcaps Map View 50x40 Zoom Use 0% Tactical HUD 1 Map Filters NONE Filters NONE Steam 1 RUN: c1ad994b-348f-472a-b595-d29ee3058a19